fUST/lending_fUST_20240725
["ID","MTS","AMOUNT","RATE_DAILY","PERIOD"]
[333132149,1721881844836,-500.0,0.00013698,2]
[333132151,1721881844845,-500.0,0.00013698,2]
[333132153,1721881844855,-672.33,0.00013698,2]
[333132155,1721881844865,-500.0,0.00013698,2]
[333132157,1721881844875,-501.6468856,0.00013698,2]
[333132159,1721881844884,-188.301598,0.00013698,2]
[333132161,1721881844894,-500.0,0.00013698,2]
[333132163,1721881844904,-3763.38,0.00013698,2]
[333132165,1721881844913,-500.0,0.00013698,2]
[333132167,1721881844923,-500.0,0.00013698,2]
[333132170,1721881844935,-500.0,0.00013698,2]
[333132172,1721881844945,-500.0,0.00013698,2]
[333132174,1721881844955,-500.0,0.00013698,2]
[333132176,1721881844967,-500.0,0.00013698,2]
[333132178,1721881844978,-2233.04,0.00013698,2]
[333132181,1721881844988,-500.0,0.00013698,2]
[333132183,1721881844997,-182.24329045,0.00013698,2]
[333132184,1721881845007,-1254.83,0.00013698,2]
[333132187,1721881845019,-507.41,0.00013698,2]
[333132189,1721881845030,-500.0,0.00013698,2]
[333132191,1721881845041,-1545.74,0.00013698,2]
[333132193,1721881845051,-500.0,0.00013698,2]
[333132195,1721881845061,-500.0,0.00013698,2]
[333132197,1721881845071,-500.0,0.00013698,2]
[333132199,1721881845080,-500.0,0.00013698,2]
[333132201,1721881845093,-1009.91,0.00013698,2]
[333132203,1721881845102,-500.0,0.00013698,2]
[333132205,1721881845111,-1445.91,0.00013698,2]
[333132207,1721881845122,-500.0,0.00013698,2]
[333132210,1721881845134,-500.80399101,0.00013698,2]
[333132212,1721881845143,-1156.83,0.00013698,2]
[333132214,1721881845152,-1189.91,0.00013698,2]
[333132216,1721881845162,-500.0,0.00013698,2]
[333132218,1721881845172,-151.0,0.00013698,2]
[333132220,1721881845182,-151.0,0.00013698,2]
[333132222,1721881845192,-500.0,0.00013698,2]
[333132224,1721881845201,-151.0,0.00013698,2]
[333132226,1721881845210,-2410.61,0.00013698,2]
[333132228,1721881845220,-3832.01,0.00013698,2]
[333132230,1721881845230,-573.8420227,0.00013698,2]
[333132232,1721881845239,-500.0,0.00013698,2]
[333132234,1721881845248,-500.0,0.00013698,2]
[333132236,1721881845257,-557.438828,0.00013698,2]
[333132238,1721881845268,-500.0,0.00013698,2]
[333132240,1721881845279,-201.44758,0.00013698,2]
[333132242,1721881845289,-405.54593588,0.00013698,2]
[333132244,1721881845298,-500.0,0.00013698,2]
[333132246,1721881845307,-500.0,0.00013698,2]
[333132248,1721881845317,-500.0,0.00013698,2]
[333132250,1721881845326,-500.0,0.00013698,2]
[333132252,1721881845335,-503.42279758,0.00013698,2]
[333132254,1721881845345,-3580.74,0.00013698,2]
[333132256,1721881845354,-1839.86,0.00013698,2]
[333132258,1721881845363,-500.0,0.00013698,2]
[333132260,1721881845371,-1649.48,0.00013698,2]
[333132262,1721881845381,-373.36320214,0.00013698,2]
[333132264,1721881845390,-500.0,0.00013698,2]
[333132266,1721881845399,-500.0,0.00013698,2]
[333132268,1721881845410,-151.0,0.00013698,2]
[333132269,1721881845420,-151.0,0.00013698,2]
[333132270,1721881845433,-151.0,0.00013698,2]
[333132271,1721881845444,-500.0,0.00013698,2]
[333132272,1721881845456,-151.0,0.00013698,2]
[333132273,1721881845469,-500.0,0.00013698,2]
[333132274,1721881845480,-511.85615867,0.00013698,2]
[333132275,1721881845491,-500.0,0.00013698,2]
[333132276,1721881845501,-820.88,0.00013698,2]
[333132277,1721881845512,-500.0,0.00013698,2]
[333132278,1721881845525,-500.0,0.00013698,2]
[333132279,1721881845534,-766.21,0.00013698,2]
[333132280,1721881845542,-300.0,0.00013698,2]
[333132281,1721881845551,-813.34,0.00013698,2]
[333132282,1721881845560,-500.0,0.00013698,2]
[333132283,1721881845569,-500.0,0.00013698,2]
[333132285,1721881845579,-532.79055912,0.00013698,2]
[333132286,1721881845591,-7335.03,0.00013698,2]
[333132288,1721881845600,-500.0,0.00013698,2]
[333132290,1721881845609,-500.0,0.00013698,2]
[333132292,1721881845618,-10926.6,0.00013698,2]
[333132294,1721881845628,-1051.88,0.00013698,2]
[333132296,1721881845638,-501.03202998,0.00013698,2]
[333132299,1721881845648,-500.0,0.00013698,2]
[333132302,1721881845659,-500.0,0.00013698,2]
[333132304,1721881845670,-500.0,0.00013698,2]
[333132306,1721881845681,-500.0,0.00013698,2]
[333132308,1721881845692,-500.0,0.00013698,2]
[333132310,1721881845702,-1406.21,0.00013698,2]
[333132312,1721881845712,-1973.91,0.00013698,2]
[333132314,1721881845722,-500.0,0.00013698,2]
[333132316,1721881845733,-5728.19,0.00013698,2]
[333132319,1721881845743,-500.0,0.00013698,2]
[333132321,1721881845754,-162.509982,0.00013698,2]
[333132323,1721881845766,-162.509982,0.00013698,2]
[333132326,1721881845779,-500.0,0.00013698,2]
[333132329,1721881845787,-162.509982,0.00013698,2]
[333132331,1721881845796,-162.509982,0.00013698,2]
[333132333,1721881845805,-162.509982,0.00013698,2]
[333132335,1721881845814,-162.509982,0.00013698,2]
[333132337,1721881845823,-260.94639549,0.00013698,2]
[333132339,1721881845834,-500.0,0.00013698,2]
[333132341,1721881845845,-162.509982,0.00013698,2]
[333132343,1721881845855,-500.0,0.00013698,2]
[333132345,1721881845866,-162.509982,0.00013698,2]
[333132347,1721881845876,-500.0,0.00013698,2]
[333132351,1721881845886,-162.509982,0.00013698,2]
[333132353,1721881845896,-162.509982,0.00013698,2]
[333132355,1721881845907,-162.509982,0.00013698,2]
[333132357,1721881845917,-2400.77,0.00013698,2]
[333132359,1721881845927,-162.509982,0.00013698,2]
[333132361,1721881845938,-162.509982,0.00013698,2]
[333132363,1721881845948,-162.509982,0.00013698,2]
[333132365,1721881845958,-162.509982,0.00013698,2]
[333132367,1721881845969,-2165.16,0.00013698,2]
[333132369,1721881845978,-162.509982,0.00013698,2]
[333132371,1721881845988,-500.0,0.00013698,2]
[333132373,1721881845997,-500.0,0.00013698,2]
[333132375,1721881846006,-500.0,0.00013698,2]
[333132377,1721881846015,-771.88,0.00013698,2]
[333132379,1721881846026,-500.0,0.00013698,2]
[333132381,1721881846036,-500.0,0.00013698,2]
[333132384,1721881846046,-1427.81,0.00013698,2]
[333132386,1721881846056,-9853.46,0.00013698,2]
[333132388,1721881846065,-500.0,0.00013698,2]
[333132390,1721881846075,-500.0,0.00013698,2]
[333132392,1721881846085,-788.71,0.00013698,2]
[333132395,1721881846097,-1516.5,0.00013698,2]
[333132397,1721881846106,-500.0,0.00013698,2]
[333132400,1721881846117,-151.0,0.00013698,2]
[333132402,1721881846127,-151.0,0.00013698,2]
[333132404,1721881846139,-500.0,0.00013698,2]
[333132407,1721881846150,-500.0,0.00013698,2]
[333132409,1721881846161,-4269.88,0.00013698,2]
[333132411,1721881846173,-500.0,0.00013698,2]
[333132413,1721881846184,-500.0,0.00013698,2]
[333132415,1721881846194,-1012.21,0.00013698,2]
[333132417,1721881846206,-859.67,0.00013698,2]
[333132419,1721881846217,-500.0,0.00013698,2]
[333132421,1721881846227,-500.0,0.00013698,2]
[333132423,1721881846237,-500.0,0.00013698,2]
[333132425,1721881846246,-500.0,0.00013698,2]
[333132427,1721881846256,-1869.96,0.00013698,2]
[333132429,1721881846266,-500.0,0.00013698,2]
[333132445,1721881846401,-500.0,0.00013698,2]
[333132447,1721881846412,-500.0,0.00013698,2]
[333132449,1721881846422,-3741.38055204,0.00013698,2]
[333132451,1721881846433,-151.0,0.00013698,2]
[333132453,1721881846443,-500.0,0.00013698,2]
[333132455,1721881846455,-1278.19,0.00013698,2]
[333132457,1721881846466,-500.0,0.00013698,2]
[333132459,1721881846476,-4802.59,0.00013698,2]
[333132461,1721881846485,-500.0,0.00013698,2]
[333132464,1721881846496,-1641.84,0.00013698,2]
[333132466,1721881846507,-500.0,0.00013698,2]
[333132468,1721881846518,-500.0,0.00013698,2]
[333132470,1721881846531,-500.0,0.00013698,2]
[333132472,1721881846541,-1348.29,0.00013698,2]
[333132474,1721881846551,-1686.16,0.00013698,2]
[333132476,1721881846562,-501.81975643,0.00013698,2]
[333132479,1721881846572,-500.0,0.00013698,2]
[333132481,1721881846582,-282.25280295,0.00013698,2]
[333132483,1721881846592,-179.56335748,0.00013698,2]
[333132485,1721881846604,-1145.96,0.00013698,2]
[333132487,1721881846613,-177.15609077,0.00013698,2]
[333132489,1721881846621,-500.0,0.00013698,2]
[333132491,1721881846632,-500.0,0.00013698,2]
[333132493,1721881846643,-500.0,0.00013698,2]
[333132495,1721881846654,-1856.87,0.00013698,2]
[333132497,1721881846664,-500.0,0.00013698,2]
[333132499,1721881846675,-500.0,0.00013698,2]
[333132501,1721881846684,-500.0,0.00013698,2]
[333132504,1721881846695,-500.0,0.00013698,2]
[333132506,1721881846708,-500.0,0.00013698,2]
[333132508,1721881846720,-500.0,0.00013698,2]
[333132510,1721881846730,-3580.39,0.00013698,2]
[333132512,1721881846739,-505.01499994,0.00013698,2]
[333132514,1721881846748,-413.72043881,0.00013698,2]
[333132516,1721881846758,-500.0,0.00013698,2]
[333132518,1721881846767,-500.0,0.00013698,2]
[333132520,1721881846778,-500.0,0.00013698,2]
[333132523,1721881846788,-1333.58,0.00013698,2]
[333132524,1721881846797,-192.31347472,0.00013698,2]
[333132526,1721881846807,-501.55215127,0.00013698,2]
[333132528,1721881846816,-502.96456176,0.00013698,2]
[333132531,1721881846825,-426.7081665,0.00013698,2]
[333132533,1721881846835,-8184.36,0.00013698,2]
[333132535,1721881846844,-327.45215116,0.00013698,2]
[333132537,1721881846854,-500.0,0.00013698,2]
[333132539,1721881846863,-186.70231516,0.00013698,2]
[333132541,1721881846873,-260.99205623,0.00013698,2]
[333132543,1721881846882,-545.89048654,0.00013698,2]
[333132545,1721881846891,-500.0,0.00013698,2]
[333132547,1721881846900,-545.89048654,0.00013698,2]
[333132549,1721881846909,-545.89048654,0.00013698,2]
[333132551,1721881846919,-545.89048654,0.00013698,2]
[333132553,1721881846928,-500.0,0.00013698,2]
[333132555,1721881846937,-545.89048654,0.00013698,2]
[333132557,1721881846947,-500.0,0.00013698,2]
[333132559,1721881846956,-545.89048654,0.00013698,2]
[333132560,1721881846965,-545.89048654,0.00013698,2]
[333132562,1721881846974,-500.0,0.00013698,2]
[333132564,1721881846983,-545.89048654,0.00013698,2]
[333132566,1721881846992,-500.0,0.00013698,2]
[333132568,1721881847001,-545.89048654,0.00013698,2]
[333132570,1721881847011,-500.0,0.00013698,2]
[333132572,1721881847020,-545.89048654,0.00013698,2]
[333132574,1721881847033,-545.89048654,0.00013698,2]
[333132576,1721881847043,-545.89048654,0.00013698,2]
[333132579,1721881847054,-545.89048654,0.00013698,2]
[333132581,1721881847064,-461.80063223,0.00013698,2]
[333132583,1721881847075,-500.0,0.00013698,2]
[333132585,1721881847091,-545.89048654,0.00013698,2]
[333132587,1721881847102,-500.0,0.00013698,2]
[333132589,1721881847113,-545.89048654,0.00013698,2]
[333132592,1721881847125,-545.89048654,0.00013698,2]
[333132594,1721881847137,-500.0,0.00013698,2]
[333132596,1721881847147,-500.0,0.00013698,2]
[333132598,1721881847159,-500.0,0.00013698,2]
[333132600,1721881847171,-500.0,0.00013698,2]
[333132602,1721881847181,-500.0,0.00013698,2]
[333132605,1721881847192,-500.0,0.00013698,2]
[333132607,1721881847202,-545.89048654,0.00013698,2]
[333132609,1721881847213,-500.0,0.00013698,2]
[333132611,1721881847224,-500.0,0.00013698,2]
[333132613,1721881847235,-500.0,0.00013698,2]
[333132615,1721881847245,-500.0,0.00013698,2]
[333132617,1721881847257,-500.0,0.00013698,2]
[333132619,1721881847267,-500.0,0.00013698,2]
[333132621,1721881847278,-500.0,0.00013698,2]
[333132623,1721881847287,-350.0,0.00013698,2]
[333132625,1721881847297,-500.0,0.00013698,2]
[333132627,1721881847307,-500.0,0.00013698,2]
[333132629,1721881847316,-545.89048654,0.00013698,2]
[333132631,1721881847326,-500.0,0.00013698,2]
[333132633,1721881847337,-500.0,0.00013698,2]
[333132635,1721881847346,-500.0,0.00013698,2]
[333132637,1721881847356,-500.0,0.00013698,2]
[333132639,1721881847365,-500.0,0.00013698,2]
[333132641,1721881847374,-500.0,0.00013698,2]
[333132643,1721881847383,-545.89048654,0.00013698,2]
[333132645,1721881847392,-151.0,0.00013699,2]
[333132647,1721881847401,-152.373414,0.00013699,2]
[333132649,1721881847410,-791.359272,0.00013699,2]
[333132651,1721881847420,-3000.0,0.00013699,2]
[333132653,1721881847430,-150.112233,0.000137,2]
[333132655,1721881847439,-150.112233,0.000137,2]
[333132657,1721881847448,-150.112233,0.000137,2]
[333132659,1721881847458,-150.112233,0.000137,2]
[333132661,1721881847467,-150.112233,0.000137,2]
[333132663,1721881847477,-150.112233,0.000137,2]
[333132665,1721881847486,-150.112233,0.000137,2]
[333132667,1721881847495,-150.112233,0.000137,2]
[333132669,1721881847504,-150.112233,0.000137,2]
[333132671,1721881847513,-150.112233,0.000137,2]
[333132673,1721881847523,-150.112233,0.000137,2]
[333132675,1721881847535,-150.112233,0.000137,2]
[333132677,1721881847547,-150.112233,0.000137,2]
[333132679,1721881847556,-150.112233,0.000137,2]
[333132680,1721881847565,-150.112233,0.000137,2]
[333132682,1721881847575,-150.112233,0.000137,2]
[333132684,1721881847585,-150.112233,0.000137,2]
[333132686,1721881847597,-150.112233,0.000137,2]
[333132688,1721881847606,-150.112233,0.000137,2]
[333132690,1721881847616,-160.0,0.00013715,6]
[333132692,1721881847626,-167.959258,0.000138,2]
[333132694,1721881847635,-167.959258,0.000138,2]
[333132696,1721881847644,-600.0,0.000138,2]
[333132698,1721881847654,-160.0,0.00013803,7]
[333132700,1721881847664,-620.04753536,0.00013832,2]
[333132702,1721881847673,-160.0,0.00013891,8]
[333132704,1721881847683,-10195.6504972,0.000139,2]
[333132706,1721881847692,-151.0,0.000139,2]
[333132708,1721881847702,-160.338114,0.00013957,2]
[333132710,1721881847711,-176.513915,0.00013957,2]
[333132712,1721881847721,-160.338115,0.00013957,2]
[333132714,1721881847730,-174.452275,0.00013957,2]
[333132716,1721881847740,-171.301766,0.00013957,2]
[333132718,1721881847749,-165.296798,0.00013957,2]
[333132720,1721881847759,-150.30539,0.00013957,2]
[333132722,1721881847768,-1409.0,0.00013962,2]
[333132724,1721881847781,-152.09303,0.00013972,2]
[333132726,1721881847791,-500.0,0.00013972,2]
[333132728,1721881847800,-1369.26,0.00013972,2]
[333132730,1721881847811,-500.0,0.00013972,2]
[333132732,1721881847824,-500.0,0.00013972,2]
[333132733,1721881847837,-509.57344492,0.00013972,2]
[333132735,1721881847889,-306.66694802,0.00013972,2]
[333132737,1721881847964,-500.0,0.00013972,2]
[333132739,1721881848073,-500.0,0.00013972,2]
[333132741,1721881848184,-500.0,0.00013972,2]
[333132743,1721881848248,-505.41470692,0.00013972,2]
[333132745,1721881848333,-500.0,0.00013972,2]
[333132746,1721881848435,-500.0,0.00013972,2]
[333132749,1721881848510,-500.0,0.00013972,2]
[333132751,1721881848587,-507.90196066,0.00013972,2]
[333132753,1721881848610,-500.0,0.00013972,2]
[333132755,1721881848625,-821.97,0.00013972,2]
[333132756,1721881848636,-500.0,0.00013972,2]
[333132757,1721881848647,-576.69704371,0.00013972,2]
[333132758,1721881848657,-500.0,0.00013972,2]
[333132759,1721881848667,-500.0,0.00013972,2]
[333132760,1721881848677,-500.0,0.00013972,2]
[333132762,1721881848688,-500.0,0.00013972,2]
[333132764,1721881848698,-636.88,0.00013972,2]
[333132766,1721881848710,-151.0,0.00013972,2]
[333132768,1721881848719,-151.0,0.00013972,2]
[333132770,1721881848729,-151.0,0.00013972,2]
[333132772,1721881848738,-500.0,0.00013972,2]
[333132774,1721881848748,-500.0,0.00013972,2]
[333132776,1721881848757,-500.0,0.00013972,2]
[333132778,1721881848767,-1580.33,0.00013972,2]
[333132780,1721881848778,-500.0,0.00013972,2]
[333132782,1721881848790,-500.0,0.00013972,2]
[333132784,1721881848800,-500.0,0.00013972,2]
[333132786,1721881848810,-500.0,0.00013972,2]
[333132788,1721881848822,-170.38399636,0.00013972,2]
[333132790,1721881848832,-500.0,0.00013972,2]
[333132792,1721881848843,-574.26793223,0.00013972,2]
[333132794,1721881848853,-507.57712413,0.00013972,2]
[333132796,1721881848863,-504.78964447,0.00013972,2]
[333132798,1721881848873,-500.0,0.00013972,2]
[333132800,1721881848882,-500.0,0.00013972,2]
[333132802,1721881848891,-504.53262261,0.00013972,2]
[333132804,1721881848900,-500.0,0.00013972,2]
[333132806,1721881848910,-500.0,0.00013972,2]
[333132808,1721881848920,-500.0,0.00013972,2]
[333132810,1721881848929,-506.78890534,0.00013972,2]
[333132812,1721881848938,-1759.01,0.00013972,2]
[333132814,1721881848947,-500.0,0.00013972,2]
[333132816,1721881848956,-500.0,0.00013972,2]
[333132818,1721881848965,-500.0,0.00013972,2]
[333132820,1721881848975,-500.0,0.00013972,2]
[333132822,1721881848984,-500.0,0.00013972,2]
[333132824,1721881848993,-500.0,0.00013972,2]
[333132826,1721881849002,-501.20994446,0.00013972,2]
[333132828,1721881849012,-502.63580816,0.00013972,2]
[333132830,1721881849021,-821.36,0.00013972,2]
[333132832,1721881849032,-373.62596632,0.00013972,2]
[333132834,1721881849041,-500.0,0.00013972,2]
[333132836,1721881849051,-151.0,0.00013972,2]
[333132838,1721881849061,-151.0,0.00013972,2]
[333132840,1721881849071,-151.0,0.00013972,2]
[333132842,1721881849082,-500.0,0.00013972,2]
[333132844,1721881849096,-165.43673651,0.00013972,2]
[333132846,1721881849106,-500.0,0.00013972,2]
[333132848,1721881849116,-1836.92,0.00013972,2]
[333132850,1721881849127,-735.59,0.00013972,2]
[333132852,1721881849137,-500.0,0.00013972,2]
[333132854,1721881849147,-500.0,0.00013972,2]
[333132856,1721881849155,-500.0,0.00013972,2]
[333132858,1721881849167,-500.0,0.00013972,2]
[333132860,1721881849178,-500.0,0.00013972,2]
[333132862,1721881849189,-500.0,0.00013972,2]
[333132864,1721881849198,-500.0,0.00013972,2]
[333132866,1721881849207,-500.0,0.00013972,2]
[333132868,1721881849217,-500.0,0.00013972,2]
[333132870,1721881849226,-504.27712946,0.00013972,2]
[333132872,1721881849236,-500.0,0.00013972,2]
[333132874,1721881849246,-500.0,0.00013972,2]
[333132876,1721881849256,-500.0,0.00013972,2]
[333132878,1721881849265,-167.959258,0.00013972,2]
[333132880,1721881849275,-167.959258,0.00013972,2]
[333132881,1721881849286,-500.0,0.00013972,2]
[333132883,1721881849295,-167.959258,0.00013972,2]
[333132885,1721881849305,-1511.51,0.00013972,2]
[333132888,1721881849316,-167.959258,0.00013972,2]
[333132890,1721881849326,-167.959258,0.00013972,2]
[333132892,1721881849335,-167.95926,0.00013972,2]
[333132894,1721881849345,-500.0,0.00013972,2]
[333132896,1721881849356,-500.0,0.00013972,2]
[333132897,1721881849366,-500.0,0.00013972,2]
[333132899,1721881849376,-500.0,0.00013972,2]
[333132901,1721881849386,-500.0,0.00013972,2]
[333132903,1721881849396,-500.0,0.00013972,2]
[333132905,1721881849406,-500.0,0.00013972,2]
[333132907,1721881849416,-500.0,0.00013972,2]
[333132909,1721881849424,-500.0,0.00013972,2]
[333132911,1721881849434,-500.0,0.00013972,2]
[333132913,1721881849443,-518.50907211,0.00013972,2]
[333132915,1721881849452,-502.55898061,0.00013972,2]
[333132917,1721881849462,-500.0,0.00013972,2]
[333132919,1721881849471,-500.0,0.00013972,2]
[333132920,1721881849480,-503.57327048,0.00013972,2]
[333132922,1721881849489,-580.99309092,0.00013972,2]
[333132924,1721881849498,-500.0,0.00013972,2]
[333132926,1721881849507,-500.0,0.00013972,2]
[333132928,1721881849516,-500.0,0.00013972,2]
[333132930,1721881849527,-644.2295738,0.00013972,2]
[333132970,1721881849947,-162.8604262,0.00013972,2]
[333132972,1721881849957,-500.0,0.00013972,2]
[333132974,1721881849968,-500.0,0.00013972,2]
[333132976,1721881849978,-500.0,0.00013972,2]
[333132978,1721881849988,-151.0,0.00013972,2]
[333132980,1721881849999,-151.0,0.00013972,2]
[333132982,1721881850009,-151.0,0.00013972,2]
[333132984,1721881850019,-500.68249841,0.00013972,2]
[333132986,1721881850031,-500.0,0.00013972,2]
[333132988,1721881850041,-500.0,0.00013972,2]
[333132990,1721881850051,-1089.26,0.00013972,2]
[333132992,1721881850062,-512.05385497,0.00013972,2]
[333132994,1721881850072,-500.0,0.00013972,2]
[333132996,1721881850083,-500.0,0.00013972,2]
[333132998,1721881850096,-501.38770988,0.00013972,2]
[333133000,1721881850107,-500.0,0.00013972,2]
[333133002,1721881850116,-500.0,0.00013972,2]
[333133005,1721881850128,-500.0,0.00013972,2]
[333133007,1721881850139,-500.0,0.00013972,2]
[333133009,1721881850150,-500.0,0.00013972,2]
[333133011,1721881850160,-500.0,0.00013972,2]
[333133013,1721881850174,-500.0,0.00013972,2]
[333133015,1721881850186,-500.0,0.00013972,2]
[333133017,1721881850196,-500.0,0.00013972,2]
[333133019,1721881850206,-500.0,0.00013972,2]
[333133021,1721881850217,-500.0,0.00013972,2]
[333133024,1721881850228,-500.0,0.00013972,2]
[333133026,1721881850238,-500.0,0.00013972,2]
[333133028,1721881850249,-500.0,0.00013972,2]
[333133030,1721881850259,-531.207357,0.00013972,2]
[333133032,1721881850271,-637.73,0.00013972,2]
[333133034,1721881850282,-500.0,0.00013972,2]
[333133036,1721881850291,-500.0,0.00013972,2]
[333133038,1721881850301,-505.35325312,0.00013972,2]
[333133039,1721881850311,-500.0,0.00013972,2]
[333133041,1721881850320,-2926.38,0.00013972,2]
[333133043,1721881850329,-500.0,0.00013972,2]
[333133045,1721881850338,-500.0,0.00013972,2]
[333133047,1721881850347,-500.0,0.00013972,2]
[333133049,1721881850358,-581.2,0.00013972,2]
[333133051,1721881850367,-500.0,0.00013972,2]
[333133053,1721881850376,-503.57049156,0.00013972,2]
[333133055,1721881850385,-500.0,0.00013972,2]
[333133057,1721881850394,-500.0,0.00013972,2]
[333133059,1721881850403,-2017.86,0.00013972,2]
[333133061,1721881850412,-1083.48,0.00013972,2]
[333133063,1721881850421,-500.0,0.00013972,2]
[333133065,1721881850430,-500.0,0.00013972,2]
[333133067,1721881850440,-500.0,0.00013972,2]
[333133069,1721881850449,-500.0,0.00013972,2]
[333133071,1721881850459,-1460.34,0.00013972,2]
[333133073,1721881850469,-500.0,0.00013972,2]
[333133075,1721881850482,-500.0,0.00013972,2]
[333133078,1721881850493,-500.0,0.00013972,2]
[333133080,1721881850506,-500.0,0.00013972,2]
[333133082,1721881850517,-500.0,0.00013972,2]
[333133084,1721881850528,-500.0,0.00013972,2]
[333133086,1721881850538,-500.0,0.00013972,2]
[333133088,1721881850548,-500.0,0.00013972,2]
[333133090,1721881850559,-500.0,0.00013972,2]
[333133092,1721881850569,-500.0,0.00013972,2]
[333133093,1721881850578,-304.88695626,0.00013972,2]
[333133094,1721881850587,-500.0,0.00013972,2]
[333133095,1721881850596,-502.98975606,0.00013972,2]
[333133096,1721881850605,-500.0,0.00013972,2]
[333133097,1721881850614,-500.0,0.00013972,2]
[333133098,1721881850624,-558.53,0.00013972,2]
[333133099,1721881850633,-631.75439276,0.00013972,2]
[333133100,1721881850643,-500.0,0.00013972,2]
[333133101,1721881850652,-583.18808271,0.00013972,2]
[333133102,1721881850661,-500.0,0.00013972,2]
[333133103,1721881850671,-500.0,0.00013972,2]
[333133104,1721881850681,-610.98,0.00013972,2]
[333133105,1721881850690,-500.0,0.00013972,2]
[333133106,1721881850700,-151.0,0.00013972,2]
[333133107,1721881850709,-151.0,0.00013972,2]
[333133108,1721881850718,-151.0,0.00013972,2]
[333133109,1721881850728,-1741.19,0.00013972,2]
[333133110,1721881850737,-207.799624,0.00013972,2]
[333133111,1721881850747,-207.799624,0.00013972,2]
[333133112,1721881850756,-207.799624,0.00013972,2]
[333133113,1721881850766,-151.0,0.00013972,2]
[333133114,1721881850775,-500.0,0.00013972,2]
[333133115,1721881850787,-500.0,0.00013972,2]
[333133116,1721881850797,-267.450771,0.00013972,2]
[333133117,1721881850807,-151.0,0.00013972,2]
[333133118,1721881850816,-151.0,0.00013972,2]
[333133119,1721881850826,-207.799624,0.00013972,2]
[333133120,1721881850835,-500.0,0.00013972,2]
[333133121,1721881850844,-207.799624,0.00013972,2]
[333133122,1721881850853,-717.56,0.00013972,2]
[333133123,1721881850862,-207.799625,0.00013972,2]
[333133124,1721881850872,-500.0,0.00013972,2]
[333133125,1721881850882,-1071.56,0.00013972,2]
[333133126,1721881850891,-151.0,0.00013972,2]
[333133127,1721881850901,-500.0,0.00013972,2]
[333133128,1721881850910,-500.0,0.00013972,2]
[333133130,1721881850919,-500.0,0.00013972,2]
[333133132,1721881850929,-500.0,0.00013972,2]
[333133134,1721881850938,-500.0,0.00013972,2]
[333133136,1721881850947,-500.0,0.00013972,2]
[333133138,1721881850958,-500.0,0.00013972,2]
[333133139,1721881850967,-500.0,0.00013972,2]
[333133140,1721881850977,-500.0,0.00013972,2]
[333133141,1721881850986,-500.0,0.00013972,2]
[333133142,1721881850995,-795.9,0.00013972,2]
[333133144,1721881851005,-500.0,0.00013972,2]
[333133146,1721881851015,-500.0,0.00013972,2]
[333133148,1721881851027,-521.79459093,0.00013972,2]
[333133150,1721881851042,-500.0,0.00013972,2]
[333133152,1721881851052,-500.0,0.00013972,2]
[333133154,1721881851063,-500.0,0.00013972,2]
[333133156,1721881851073,-500.0,0.00013972,2]